fUSD/lending_fUSD_20240718
["ID","MTS","AMOUNT","RATE_DAILY","PERIOD"]
[332504440,1721278281548,-1864.33,0.00022465,2]
[332504441,1721278281557,-500.0,0.00022465,2]
[332504442,1721278281566,-663.525383,0.00022465,7]
[332504443,1721278281575,-151.0,0.00022465,7]
[332504444,1721278281585,-500.0,0.00022465,2]
[332504445,1721278281595,-827.36,0.00022465,2]
[332504446,1721278281604,-500.0,0.00022465,2]
[332504447,1721278281613,-660.97,0.00022465,2]
[332504448,1721278281623,-158.933656,0.00022465,7]
[332504449,1721278281633,-1084.09,0.00022465,2]
[332504450,1721278281643,-500.0,0.00022465,2]
[332504451,1721278281653,-790.22,0.00022465,2]
[332504452,1721278281663,-500.0,0.00022465,2]
[332504453,1721278281674,-151.0,0.00022465,7]
[332504454,1721278281684,-663.525383,0.00022465,7]
[332504455,1721278281694,-690.37,0.00022465,2]
[332504456,1721278281704,-500.0,0.00022465,2]
[332504457,1721278281713,-506.82863023,0.00022465,2]
[332504458,1721278281723,-510.77593861,0.00022465,2]
[332504459,1721278281735,-542.73333745,0.00022465,2]
[332504460,1721278281749,-1069.06,0.00022465,2]
[332504461,1721278281758,-850.78,0.00022465,2]
[332504462,1721278281768,-625.18,0.00022465,2]
[332504463,1721278281778,-500.0,0.00022465,2]
[332504464,1721278281789,-821.43,0.00022465,2]
[332504465,1721278281799,-531.93,0.00022465,2]
[332504466,1721278281811,-500.0,0.00022465,2]
[332504467,1721278281820,-500.0,0.00022465,2]
[332504468,1721278281829,-500.0,0.00022465,2]
[332504469,1721278281840,-835.04,0.00022465,2]
[332504470,1721278281849,-500.0,0.00022465,2]
[332504471,1721278281859,-1014.65,0.00022465,2]
[332504472,1721278281871,-1687.7,0.00022465,2]
[332504473,1721278281881,-639.5675309,0.00022465,2]
[332504474,1721278281891,-500.0,0.00022465,2]
[332504475,1721278281901,-500.0,0.00022465,2]
[332504476,1721278281911,-500.0,0.00022465,2]
[332504477,1721278281922,-450.700224,0.00022465,7]
[332504478,1721278281932,-151.0,0.00022465,7]
[332504479,1721278281941,-1534.11,0.00022465,2]
[332504480,1721278281951,-513.38029161,0.00022465,2]
[332504481,1721278281962,-506.85770381,0.00022465,2]
[332504482,1721278281971,-500.0,0.00022465,2]
[332504483,1721278281982,-2696.799558,0.00022465,7]
[332504484,1721278281993,-188.18518004,0.00022465,2]
[332504485,1721278282004,-693.0,0.00022465,2]
[332504486,1721278282015,-450.700224,0.00022465,7]
[332504487,1721278282026,-506.78052121,0.00022465,2]
[332504488,1721278282037,-503.52796108,0.00022465,2]
[332504489,1721278282049,-691.63,0.00022465,2]
[332504490,1721278282059,-2696.799558,0.00022465,7]
[332504491,1721278282068,-500.0,0.00022465,2]
[332504492,1721278282077,-287.94686456,0.00022465,2]
[332504493,1721278282087,-606.52,0.00022465,2]
[332504494,1721278282098,-500.0,0.00022465,2]
[332504495,1721278282107,-602.58,0.00022465,2]
[332504496,1721278282116,-502.76042237,0.00022465,2]
[332504497,1721278282127,-508.72734486,0.00022465,2]
[332504498,1721278282137,-500.0,0.00022465,2]
[332504499,1721278282146,-503.57279594,0.00022465,2]
[332504500,1721278282155,-793.77,0.00022465,2]
[332504501,1721278282164,-418.828348,0.00022465,7]
[332504502,1721278282173,-502.10951287,0.00022465,2]
[332504503,1721278282183,-514.69,0.00022465,2]
[332504504,1721278282192,-1216.98,0.00022465,2]
[332504505,1721278282201,-500.0,0.00022465,2]
[332504506,1721278282210,-678.38,0.00022465,2]
[332504507,1721278282220,-2005.3,0.00022465,2]
[332504508,1721278282229,-500.0,0.00022465,2]
[332504509,1721278282238,-500.0,0.00022465,2]
[332504510,1721278282247,-418.828348,0.00022465,7]
[332504511,1721278282256,-500.0,0.00022465,2]
[332504512,1721278282265,-500.0,0.00022465,2]
[332504513,1721278282274,-1929.61,0.00022465,2]
[332504514,1721278282284,-507.34300523,0.00022465,2]
[332504515,1721278282293,-505.61861026,0.00022465,2]
[332504516,1721278282302,-1580.89,0.00022465,2]
[332504517,1721278282312,-500.0,0.00022465,2]
[332504518,1721278282321,-1243.02,0.00022465,2]
[332504519,1721278282330,-500.0,0.00022465,2]
[332504520,1721278282339,-622.91,0.00022465,2]
[332504521,1721278282350,-500.0,0.00022465,2]
[332504522,1721278282359,-1663.83,0.00022465,2]
[332504523,1721278282369,-707.3,0.00022465,2]
[332504524,1721278282378,-1060.24,0.00022465,2]
[332504525,1721278282387,-500.77424005,0.00022465,2]
[332504526,1721278282396,-503.18756627,0.00022465,2]
[332504527,1721278282406,-500.0,0.00022465,2]
[332504528,1721278282416,-1036.78,0.00022465,2]
[332504529,1721278282425,-958.75,0.00022465,2]
[332504530,1721278282435,-509.38161127,0.00022465,2]
[332504531,1721278282446,-504.14552575,0.00022465,2]
[332504532,1721278282456,-500.0,0.00022465,2]
[332504533,1721278282466,-500.0,0.00022465,2]
[332504534,1721278282475,-1305.9,0.00022465,2]
[332504535,1721278282485,-151.0,0.00022465,7]
[332504536,1721278282496,-151.0,0.00022465,7]
[332504537,1721278282506,-500.0,0.00022465,2]
[332504538,1721278282515,-1828.43,0.00022465,2]
[332504539,1721278282525,-1235.49,0.00022465,2]
[332504540,1721278282535,-946.22,0.00022465,2]
[332504541,1721278282546,-500.0,0.00022465,2]
[332504542,1721278282555,-918.04,0.00022465,2]
[332504543,1721278282566,-500.0,0.00022465,2]
[332504544,1721278282577,-151.0,0.00022465,7]
[332504545,1721278282586,-529.76,0.00022465,2]
[332504546,1721278282596,-500.0,0.00022465,2]
[332504547,1721278282605,-617.32,0.00022465,2]
[332504548,1721278282615,-8197.53,0.00022465,2]
[332504549,1721278282624,-528.36632344,0.00022465,2]
[332504550,1721278282635,-501.36751303,0.00022465,2]
[332504551,1721278282645,-1390.05,0.00022465,2]
[332504552,1721278282655,-497.62393119,0.00022465,2]
[332504553,1721278282664,-500.0,0.00022465,2]
[332504554,1721278282674,-500.96509144,0.00022465,2]
[332504555,1721278282685,-500.0,0.00022465,2]
[332504556,1721278282694,-772.27,0.00022465,2]
[332504557,1721278282704,-500.0,0.00022465,2]
[332504558,1721278282713,-500.0,0.00022465,2]
[332504559,1721278282722,-500.0,0.00022465,2]
[332504560,1721278282732,-501.70031494,0.00022465,2]
[332504561,1721278282744,-636.59,0.00022465,2]
[332504562,1721278282754,-507.84083093,0.00022465,2]
[332504563,1721278282764,-773.6,0.00022465,2]
[332504564,1721278282773,-500.0,0.00022465,2]
[332504565,1721278282784,-1007.66186269,0.00022465,2]
[332504566,1721278282795,-192.00670876,0.00022465,2]
[332504567,1721278282806,-1331.79,0.00022465,2]
[332504568,1721278282817,-500.0,0.00022465,2]
[332504569,1721278282827,-1627.91,0.00022465,2]
[332504570,1721278282838,-1293.15,0.00022465,2]
[332504571,1721278282848,-500.0,0.00022465,2]
[332504572,1721278282857,-502.33295848,0.00022465,2]
[332504573,1721278282868,-877.01,0.00022465,2]
[332504574,1721278282877,-619.15482189,0.00022465,2]
[332504575,1721278282886,-500.0,0.00022465,2]
[332504576,1721278282897,-2522.6,0.00022465,2]
[332504577,1721278282906,-500.0,0.00022465,2]
[332504578,1721278282915,-614.97,0.00022465,2]
[332504579,1721278282925,-151.0,0.00022465,7]
[332504580,1721278282937,-529.7237024,0.00022465,2]
[332504581,1721278282949,-507.29767501,0.00022465,2]
[332504582,1721278282959,-500.0,0.00022465,2]
[332504583,1721278282970,-500.36115968,0.00022465,2]
[332504584,1721278282979,-500.0,0.00022465,2]
[332504585,1721278282990,-500.0,0.00022465,2]
[332504586,1721278282999,-1546.41,0.00022465,2]
[332504587,1721278283010,-832.04,0.00022465,2]
[332504588,1721278283087,-500.0,0.00022465,2]
[332504589,1721278283099,-1780.82,0.00022465,2]
[332504590,1721278283111,-884.93,0.00022465,2]
[332504591,1721278283121,-500.0,0.00022465,2]
[332504592,1721278283131,-500.0,0.00022465,2]
[332504593,1721278283140,-500.0,0.00022465,2]
[332504594,1721278283149,-500.0,0.00022465,2]
[332504595,1721278283158,-707.05,0.00022465,2]
[332504596,1721278283168,-1691.33,0.00022465,2]
[332504597,1721278283177,-151.0,0.00022465,7]
[332504598,1721278283186,-823.65,0.00022465,2]
[332504599,1721278283195,-500.0,0.00022465,2]
[332504600,1721278283204,-805.79,0.00022465,2]
[332504601,1721278283213,-500.0,0.00022465,2]
[332504602,1721278283222,-500.0,0.00022465,2]
[332504603,1721278283231,-500.0,0.00022465,2]
[332504604,1721278283240,-709.27,0.00022465,2]
[332504605,1721278283249,-500.0,0.00022465,2]
[332504606,1721278283259,-504.23827969,0.00022465,2]
[332504607,1721278283268,-521.48,0.00022465,2]
[332504608,1721278283277,-771.1,0.00022465,2]
[332504609,1721278283286,-500.0,0.00022465,2]
[332504610,1721278283295,-500.0,0.00022465,2]
[332504611,1721278283304,-500.0,0.00022465,2]
[332504612,1721278283314,-3003.8,0.00022465,2]
[332504613,1721278283323,-997.72,0.00022465,2]
[332504614,1721278283333,-500.0,0.00022465,2]
[332504615,1721278283342,-617.11,0.00022465,2]
[332504616,1721278283352,-505.86292111,0.00022465,2]
[332504617,1721278283362,-500.68079614,0.00022465,2]
[332504618,1721278283371,-1220.75,0.00022465,2]
[332504619,1721278283381,-2547.74,0.00022465,2]
[332504620,1721278283391,-500.0,0.00022465,2]
[332504621,1721278283403,-500.0,0.00022465,2]
[332504622,1721278283414,-500.0,0.00022465,2]
[332504623,1721278283423,-756.98,0.00022465,2]
[332504624,1721278283432,-8313.01,0.00022465,2]
[332504625,1721278283441,-500.0,0.00022465,2]
[332504626,1721278283451,-500.0,0.00022465,2]
[332504627,1721278283460,-526.88,0.00022465,2]
[332504628,1721278283469,-372.031596,0.00022465,7]
[332504629,1721278283479,-151.0,0.00022465,7]
[332504630,1721278283489,-500.0,0.00022465,2]
[332504631,1721278283498,-557.85,0.00022465,2]
[332504632,1721278283508,-500.51430647,0.00022465,2]
[332504633,1721278283517,-500.0,0.00022465,2]
[332504634,1721278283527,-500.0,0.00022465,2]
[332504635,1721278283536,-500.0,0.00022465,2]
[332504636,1721278283546,-500.0,0.00022465,2]
[332504637,1721278283556,-500.0,0.00022465,2]
[332504638,1721278283565,-372.031596,0.00022465,7]
[332504639,1721278283575,-500.0,0.00022465,2]
[332504640,1721278283584,-500.0,0.00022465,2]
[332504641,1721278283593,-500.0,0.00022465,2]
[332504642,1721278283605,-2903.62,0.00022465,2]
[332504643,1721278283615,-1310.82,0.00022465,2]
[332504644,1721278283627,-151.0,0.00022465,7]
[332504645,1721278283636,-502.81360325,0.00022465,2]
[332504646,1721278283645,-500.0,0.00022465,2]
[332504647,1721278283655,-502.54461111,0.00022465,2]
[332504648,1721278283663,-1227.17,0.00022465,2]
[332504649,1721278283673,-501.38461972,0.00022465,2]
[332504650,1721278283682,-506.7442569,0.00022465,2]
[332504651,1721278283691,-500.0,0.00022465,2]
[332504652,1721278283700,-1313.57,0.00022465,2]
[332504653,1721278283710,-849.08,0.00022465,2]
[332504654,1721278283719,-503.34543439,0.00022465,2]
[332504655,1721278283728,-503.6676442,0.00022465,2]
[332504656,1721278283737,-502.95654336,0.00022465,2]
[332504657,1721278283747,-500.0,0.00022465,2]
[332504658,1721278283756,-615.96,0.00022465,2]
[332504659,1721278283766,-500.0,0.00022465,2]
[332504660,1721278283777,-724.44,0.00022465,2]
[332504661,1721278283786,-518.96,0.00022465,2]
[332504662,1721278283795,-924.97,0.00022465,2]
[332504663,1721278283806,-3893.82,0.00022465,2]
[332504664,1721278283816,-523.83,0.00022465,2]
[332504665,1721278283825,-500.0,0.00022465,2]
[332504666,1721278283834,-500.0,0.00022465,2]
[332504667,1721278283844,-504.07031928,0.00022465,2]
[332504668,1721278283853,-500.0,0.00022465,2]
[332504669,1721278283862,-500.0,0.00022465,2]
[332504670,1721278283872,-500.71457888,0.00022465,2]
[332504671,1721278283881,-500.59935583,0.00022465,2]
[332504672,1721278283890,-500.0,0.00022465,2]
[332504673,1721278283900,-4415.18,0.00022465,2]
[332504674,1721278283910,-151.0,0.00022465,7]
[332504675,1721278283920,-791.679712,0.00022465,7]
[332504676,1721278283930,-507.88252822,0.00022465,2]
[332504677,1721278283940,-500.0,0.00022465,2]
[332504678,1721278283951,-500.0,0.00022465,2]
[332504679,1721278283961,-504.95749625,0.00022465,2]
[332504680,1721278283972,-500.0,0.00022465,2]
[332504681,1721278283981,-671.84,0.00022465,2]
[332504682,1721278283990,-508.69,0.00022465,2]
[332504683,1721278283999,-993.35,0.00022465,2]
[332504684,1721278284008,-823.77,0.00022465,2]
[332504685,1721278284018,-500.80012233,0.00022465,2]
[332504686,1721278284027,-791.679712,0.00022465,7]
[332504687,1721278284038,-745.46,0.00022465,2]
[332504688,1721278284050,-510.59810458,0.00022465,2]
[332504689,1721278284059,-500.0,0.00022465,2]
[332504690,1721278284070,-4168.39,0.00022465,2]
[332504691,1721278284079,-500.0,0.00022465,2]
[332504692,1721278284088,-500.0,0.00022465,2]
[332504693,1721278284099,-500.80958797,0.00022465,2]
[332504694,1721278284108,-853.51,0.00022465,2]
[332504695,1721278284119,-505.59745286,0.00022465,2]
[332504696,1721278284128,-517.92,0.00022465,2]
[332504697,1721278284138,-814.39,0.00022465,2]
[332504698,1721278284147,-518.26856343,0.00022465,2]
[332504699,1721278284156,-500.0,0.00022465,2]
[332504700,1721278284167,-500.0,0.00022465,2]
[332504701,1721278284177,-500.0,0.00022465,2]
[332504702,1721278284186,-500.0,0.00022465,2]
[332504703,1721278284196,-500.0,0.00022465,2]
[332504704,1721278284205,-2537.23,0.00022465,2]
[332504705,1721278284214,-682.12,0.00022465,2]
[332504706,1721278284224,-1130.61,0.00022465,2]
[332504707,1721278284234,-773.67,0.00022465,2]
[332504708,1721278284243,-959.84,0.00022465,2]
[332504709,1721278284252,-500.0,0.00022465,2]
[332504710,1721278284262,-938.53,0.00022465,2]
[332504711,1721278284271,-1800.16,0.00022465,2]
[332504712,1721278284279,-151.0,0.00022465,7]
[332504713,1721278284288,-1073.57,0.00022465,2]
[332504714,1721278284298,-505.20280375,0.00022465,2]
[332504715,1721278284307,-1728.96,0.00022465,2]
[332504716,1721278284317,-150.0,0.0002247,2]
[332504717,1721278284326,-150.0,0.00022475,2]
[332504718,1721278284335,-152.10825305,0.00022489,2]
[332504719,1721278284347,-150.0,0.0002249,2]
[332504720,1721278284356,-150.0,0.00022499,2]
[332504721,1721278284365,-150.0,0.0002251,2]
[332504722,1721278284375,-150.0,0.00022515,2]
[332504723,1721278284384,-150.0,0.00022518,2]
[332504724,1721278284394,-150.0,0.00022525,2]
[332504725,1721278284405,-150.0,0.00022528,2]
[332504726,1721278284414,-150.0,0.00022532,2]
[332504727,1721278284424,-150.0,0.0002254,2]
[332504728,1721278284434,-150.0,0.00022544,2]
[332504729,1721278284443,-150.0,0.00022546,2]
[332504730,1721278284452,-150.0,0.00022563,2]
[332504731,1721278284461,-150.0,0.00022565,2]
[332504732,1721278284471,-150.0,0.00022567,2]
[332504733,1721278284480,-150.0,0.00022571,2]
[332504734,1721278284489,-150.0,0.00022575,2]
[332504735,1721278284500,-150.0,0.00022575,2]
[332504736,1721278284511,-150.0,0.0002258,2]
[332504737,1721278284520,-150.0,0.0002258,2]
[332504738,1721278284530,-150.0,0.0002258,2]
[332504739,1721278284539,-150.0,0.00022582,2]
[332504740,1721278284549,-150.0,0.00022585,2]
[332504741,1721278284559,-150.0,0.0002259,2]
[332504742,1721278284568,-150.0,0.00022596,2]
[332504743,1721278284578,-150.0,0.000226,2]
[332504744,1721278284587,-155.58,0.00022603,2]
[332504745,1721278284597,-150.0,0.00022617,2]
[332504746,1721278284607,-166.66666668,0.00022617,2]
[332504747,1721278284617,-150.0,0.00022618,2]
[332504748,1721278284627,-150.0,0.00022625,2]
[332504749,1721278284637,-150.0,0.00022626,2]
[332504750,1721278284646,-150.0,0.00022634,2]
[332504751,1721278284656,-150.0,0.00022637,2]
[332504752,1721278284665,-150.0,0.00022639,2]
[332504753,1721278284675,-150.0,0.0002264,2]
[332504754,1721278284685,-150.0,0.00022645,2]
[332504755,1721278284694,-150.0,0.00022649,2]
[332504756,1721278284703,-150.0,0.00022649,2]
[332504757,1721278284712,-151.0,0.0002265,7]
[332504758,1721278284721,-472.836208,0.0002265,7]
[332504759,1721278284731,-472.836208,0.0002265,7]
[332504760,1721278284740,-459.89627,0.0002265,7]
[332504761,1721278284750,-459.89627,0.0002265,7]
[332504762,1721278284759,-150.0,0.00022656,2]
[332504763,1721278284769,-150.0,0.00022659,2]
[332504764,1721278284779,-150.0,0.00022683,2]
[332504765,1721278284789,-150.0,0.00022684,2]
[332504766,1721278284798,-175.81838702,0.00022684,2]
[332504767,1721278284808,-150.0,0.00022687,2]
[332504768,1721278284817,-150.0,0.00022688,2]
[332504769,1721278284826,-258.0,0.000227,2]
[332504770,1721278284835,-2000.0,0.000227,2]
[332504771,1721278284844,-1032.459272,0.000227,2]
[332504772,1721278284853,-150.0,0.00022708,2]
[332504773,1721278284862,-150.0,0.00022719,2]
[332504774,1721278284871,-150.0,0.00022724,2]
[332504775,1721278284881,-150.0,0.00022724,2]
[332504776,1721278284890,-1666.223357,0.00022732,2]
[332504777,1721278284900,-150.0,0.00022737,2]
[332504778,1721278284909,-1557.47442856,0.00022738,2]
[332504779,1721278284918,-660.98,0.00022739,2]
[332504780,1721278284928,-500.0,0.00022739,2]
[332504781,1721278284937,-500.0,0.00022739,2]
[332504782,1721278284946,-563.88,0.00022739,2]
[332504783,1721278284955,-500.0,0.00022739,2]
[332504784,1721278284964,-671.28,0.00022739,2]
[332504785,1721278284974,-500.0,0.00022739,2]
[332504786,1721278284983,-500.0,0.00022739,2]
[332504787,1721278284992,-500.0,0.00022739,2]
[332504788,1721278285002,-500.0,0.00022739,2]
[332504789,1721278285011,-500.0,0.00022739,2]
[332504790,1721278285021,-500.0,0.00022739,2]
[332504791,1721278285030,-1004.82,0.00022739,2]
[332504792,1721278285039,-1395.21,0.00022739,2]
[332504793,1721278285052,-615.75,0.00022739,2]
[332504794,1721278285062,-500.0,0.00022739,2]
[332504795,1721278285071,-226.03503394,0.00022739,2]
[332504796,1721278285080,-500.0,0.00022739,2]
[332504797,1721278285090,-500.0,0.00022739,2]
[332504798,1721278285100,-500.0,0.00022739,2]
[332504799,1721278285109,-500.0,0.00022739,2]
[332504800,1721278285121,-500.0,0.00022739,2]
[332504801,1721278285130,-500.0,0.00022739,2]
[332504802,1721278285140,-500.0,0.00022739,2]
[332504803,1721278285150,-922.3,0.00022739,2]
[332504804,1721278285160,-500.0,0.00022739,2]
[332504805,1721278285171,-151.0,0.00022739,7]
[332504806,1721278285182,-500.0,0.00022739,2]
[332504807,1721278285193,-500.0,0.00022739,2]
[332504808,1721278285203,-500.0,0.00022739,2]
[332504809,1721278285213,-500.0,0.00022739,2]
[332504810,1721278285222,-1100.58,0.00022739,2]
[332504811,1721278285231,-500.0,0.00022739,2]
[332504812,1721278285240,-151.0,0.00022739,7]
[332504813,1721278285252,-816.86,0.00022739,2]
[332504814,1721278285262,-842.54,0.00022739,2]
[332504815,1721278285271,-500.0,0.00022739,2]
[332504816,1721278285282,-500.0,0.00022739,2]
[332504817,1721278285293,-500.0,0.00022739,2]
[332504818,1721278285303,-500.0,0.00022739,2]
[332504819,1721278285312,-500.0,0.00022739,2]
[332504820,1721278285321,-500.0,0.00022739,2]
[332504821,1721278285330,-500.0,0.00022739,2]
[332504822,1721278285339,-408.61135007,0.00022739,2]
[332504823,1721278285348,-500.0,0.00022739,2]
[332504824,1721278285358,-726.21,0.00022739,2]
[332504825,1721278285367,-747.29,0.00022739,2]
[332504826,1721278285376,-500.0,0.00022739,2]
[332504827,1721278285387,-500.0,0.00022739,2]
[332504828,1721278285397,-518.35,0.00022739,2]
[332504829,1721278285407,-500.0,0.00022739,2]
[332504830,1721278285416,-513.68,0.00022739,2]
[332504831,1721278285427,-912.57,0.00022739,2]
[332504832,1721278285437,-500.0,0.00022739,2]
[332504833,1721278285445,-500.0,0.00022739,2]
[332504834,1721278285454,-500.0,0.00022739,2]
[332504835,1721278285463,-500.0,0.00022739,2]
[332504836,1721278285471,-523.26181253,0.00022739,2]
[332504837,1721278285481,-715.61,0.00022739,2]
[332504838,1721278285490,-500.0,0.00022739,2]
[332504839,1721278285499,-500.0,0.00022739,2]
[332504840,1721278285508,-500.0,0.00022739,2]
[332504841,1721278285517,-500.0,0.00022739,2]
[332504842,1721278285527,-500.0,0.00022739,2]
[332504843,1721278285536,-500.0,0.00022739,2]
[332504844,1721278285547,-500.0,0.00022739,2]
[332504845,1721278285557,-500.0,0.00022739,2]
[332504846,1721278285566,-500.0,0.00022739,2]
[332504847,1721278285575,-500.0,0.00022739,2]
[332504848,1721278285585,-500.0,0.00022739,2]
[332504849,1721278285594,-500.0,0.00022739,2]
[332504850,1721278285604,-528.41,0.00022739,2]
[332504851,1721278285613,-500.0,0.00022739,2]
[332504852,1721278285623,-505.98142328,0.00022739,2]
[332504853,1721278285633,-500.0,0.00022739,2]
[332504854,1721278285642,-1174.7,0.00022739,2]
[332504855,1721278285651,-500.0,0.00022739,2]
[332504856,1721278285660,-500.0,0.00022739,2]
[332504857,1721278285670,-500.0,0.00022739,2]
[332504858,1721278285680,-500.0,0.00022739,2]
[332504859,1721278285689,-500.0,0.00022739,2]
[332504860,1721278285698,-151.0,0.00022739,7]
[332504861,1721278285707,-151.0,0.00022739,7]
[332504862,1721278285716,-151.0,0.00022739,7]
[332504863,1721278285725,-510.57,0.00022739,2]
[332504864,1721278285734,-500.0,0.00022739,2]
[332504865,1721278285743,-500.0,0.00022739,2]
[332504866,1721278285752,-675.6,0.00022739,2]
[332504867,1721278285761,-500.0,0.00022739,2]
[332504868,1721278285770,-500.0,0.00022739,2]
[332504869,1721278285779,-500.0,0.00022739,2]
[332504870,1721278285788,-500.0,0.00022739,2]
[332504871,1721278285797,-500.0,0.00022739,2]
[332504872,1721278285806,-500.0,0.00022739,2]
[332504873,1721278285815,-808.44,0.00022739,2]
[332504874,1721278285823,-151.0,0.00022739,7]
[332504875,1721278285833,-500.0,0.00022739,2]
[332504876,1721278285842,-500.0,0.00022739,2]
[332504877,1721278285851,-500.0,0.00022739,2]
[332504878,1721278285861,-1485.25,0.00022739,2]
[332504879,1721278285870,-500.0,0.00022739,2]
[332504880,1721278285879,-500.0,0.00022739,2]
[332504881,1721278285889,-851.31,0.00022739,2]
[332504882,1721278285901,-500.0,0.00022739,2]
[332504883,1721278285911,-737.53,0.00022739,2]
[332504884,1721278285924,-731.61,0.00022739,2]
[332504885,1721278285935,-500.0,0.00022739,2]
[332504886,1721278285945,-500.0,0.00022739,2]
[332504887,1721278285956,-500.0,0.00022739,2]
[332504888,1721278285967,-847.98,0.00022739,2]
[332504889,1721278285976,-1118.26,0.00022739,2]
[332504890,1721278285986,-1876.76,0.00022739,2]
[332504891,1721278285995,-611.53347034,0.00022739,2]
[332504892,1721278286004,-500.0,0.00022739,2]
[332504893,1721278286014,-500.0,0.00022739,2]
[332504894,1721278286023,-500.0,0.00022739,2]
[332504895,1721278286032,-578.05,0.00022739,2]
[332504896,1721278286041,-873.21,0.00022739,2]
[332504897,1721278286056,-223.05214719,0.00022739,2]
[332504898,1721278286065,-500.0,0.00022739,2]
[332504899,1721278286075,-714.22,0.00022739,2]
[332504900,1721278286084,-1825.95,0.00022739,2]
[332504901,1721278286095,-151.0,0.00022739,7]
[332504902,1721278286105,-734.44,0.00022739,2]
[332504903,1721278286114,-500.0,0.00022739,2]
[332504904,1721278286123,-500.0,0.00022739,2]
[332504905,1721278286132,-701.01,0.00022739,2]
[332504906,1721278286142,-500.0,0.00022739,2]
[332504907,1721278286154,-869.23,0.00022739,2]
[332504908,1721278286164,-507.03120753,0.00022739,2]
[332504909,1721278286174,-500.0,0.00022739,2]
[332504910,1721278286183,-500.0,0.00022739,2]
[332504911,1721278286193,-909.34,0.00022739,2]
[332504912,1721278286202,-500.0,0.00022739,2]
[332504913,1721278286212,-500.0,0.00022739,2]
[332504914,1721278286223,-1334.21,0.00022739,2]
[332504915,1721278286232,-507.48455448,0.00022739,2]
[332504916,1721278286244,-1076.03,0.00022739,2]
[332504917,1721278286254,-621.2,0.00022739,2]
[332504918,1721278286263,-500.0,0.00022739,2]
[332504919,1721278286273,-500.0,0.00022739,2]
[332504920,1721278286283,-151.0,0.00022739,7]
[332504921,1721278286292,-500.0,0.00022739,2]
[332504922,1721278286302,-500.0,0.00022739,2]
[332504923,1721278286312,-500.0,0.00022739,2]
[332504924,1721278286321,-500.0,0.00022739,2]
[332504925,1721278286330,-977.9,0.00022739,2]
[332504926,1721278286339,-514.4658353,0.00022739,2]
[332504927,1721278286349,-500.0,0.00022739,2]
[332504928,1721278286358,-500.0,0.00022739,2]
[332504929,1721278286366,-500.0,0.00022739,2]
[332504930,1721278286375,-500.0,0.00022739,2]
[332504931,1721278286388,-707.1,0.00022739,2]
[332504932,1721278286397,-500.0,0.00022739,2]
[332504933,1721278286408,-796.34,0.00022739,2]
[332504934,1721278286417,-500.0,0.00022739,2]
[332504935,1721278286427,-773.11,0.00022739,2]
[332504936,1721278286436,-1277.33,0.00022739,2]
[332504937,1721278286445,-976.14,0.00022739,2]
[332504938,1721278286454,-943.13,0.00022739,2]
[332504939,1721278286463,-990.23,0.00022739,2]